bitfinex/quotes_ETHUSD_20260202
["timestamp","ask_amount","ask_price","bid_price","bid_amount"]
[1769992984170,14.82866478,2316.5,2315.3,0.54504162]
[1769992984376,1.07926092,2316.4,2315.3,1.6247787]
[1769992984779,1.07926092,2316.4,2315.3,0.54504162]
[1769992984780,15.0029257,2316.4,2315.3,0.54504162]
[1769992985289,15.0029257,2316.4,2315.3,0.001]
[1769992985959,15.01635212,2316.4,2315.3,0.001]
[1769992986156,15.6006783,2316.4,2315.3,0.001]
[1769992986383,13.92366478,2316.0,2315.0,0.001]
[1769992986586,16.3217026,2315.9,2315.0,0.001]
[1769992987058,1.07940071,2316.1,2315.0,0.001]
[1769992987267,1.07938216,2316.2,2315.1,0.01342642]
[1769992987965,14.62004048,2316.2,2315.0,0.001]
[1769992988682,1.07930751,2316.3,2315.0,0.001]
[1769992988892,15.25010886,2316.3,2315.0,0.001]
[1769992989187,13.54065832,2316.1,2315.0,0.001]
[1769992990296,1.70945054,2316.3,2315.0,0.001]
[1769992990619,0.905,2316.2,2315.0,0.001]
[1769992990898,13.54065832,2316.5,2315.3,0.01342642]
[1769992990899,0.905,2316.4,2315.3,0.01342642]
[1769992991310,1.07922095,2316.5,2315.3,0.01342642]
[1769992992790,4.31777958,2316.6,2315.4,1.07972704]
[1769992993038,14.27895141,2316.5,2315.0,0.001]
[1769992993293,14.29237783,2316.5,2315.3,1.07977172]
[1769992993491,13.55408474,2316.3,2315.0,0.001]
[1769992993788,13.54065832,2316.1,2315.0,0.001]
[1769992994162,13.54065832,2315.9,2315.0,0.001]
[1769992994390,13.54065832,2315.7,2315.0,0.001]
[1769992994590,0.905,2315.6,2315.0,0.001]
[1769992994759,13.55408474,2316.1,2315.0,0.001]
[1769992994960,1.07944732,2316.0,2315.0,0.001]
[1769992995672,0.905,2316.1,2315.0,0.001]
[1769992995673,15.52509442,2316.1,2315.0,0.001]
[1769992995872,15.53852084,2316.1,2315.0,0.001]
[1769992996092,13.54065832,2315.9,2315.0,0.001]
[1769992996806,0.01342642,2316.0,2315.0,0.001]
[1769992996807,1.07963378,2315.6,2315.0,0.001]
[1769992997088,2.79888273,2315.5,2315.0,0.001]
[1769992997304,2.79888273,2315.5,2314.5,0.001]
[1769992997305,16.33954105,2315.5,2314.5,0.001]
[1769992998167,0.905,2315.4,2314.5,0.001]
[1769992998466,0.905,2315.5,2314.5,0.001]
[1769992998995,1.07940071,2316.1,2314.6,13.75179774]
[1769992999176,1.57413113,2316.0,2314.7,1.37527977]
[1769992999504,15.11478945,2316.0,2314.5,0.001]
[1769992999704,0.92993976,2315.9,2314.5,0.001]
[1769992999879,0.01342642,2315.9,2314.5,0.001]
[1769993000075,15.12821587,2316.0,2314.5,0.001]
[1769993000284,0.9297609,2315.9,2314.5,0.001]
[1769993000495,1.60445504,2315.8,2314.5,13.73937132]
[1769993000716,0.905,2315.9,2314.5,13.73937132]
[1769993000884,1.98450288,2315.9,2314.6,14.81847155]
[1769993001285,1.98450288,2315.9,2314.6,1.08010023]
[1769993002021,0.905,2315.9,2314.6,14.81847155]
[1769993002312,1.98449509,2315.9,2314.6,14.83189797]
[1769993002509,1.98449509,2315.9,2314.7,1.91667253]
[1769993002807,0.905,2315.9,2314.8,1.08000691]
[1769993003009,0.0011,2316.3,2314.8,14.83180465]
[1769993003185,1.08041269,2316.3,2314.9,14.64337132]
[1769993004310,14.62107101,2316.3,2314.9,0.905]
[1769993004510,0.63024756,2316.2,2314.9,0.905]
[1769993005019,1.70963246,2316.2,2315.0,1.0799136]
[1769993005612,1.08042805,2316.3,2315.0,1.0799136]
[1769993005818,1.08041557,2316.3,2315.0,14.81828492]
[1769993006533,0.0011,2316.3,2315.2,13.73837132]
[1769993006733,0.0011,2316.3,2315.3,13.75179774]
[1769993006906,0.0011,2316.3,2315.4,1.07972704]
[1769993007106,0.0011,2316.3,2315.5,1.9150433]
[1769993007922,0.0011,2316.3,2315.4,1.07972704]
[1769993008316,0.0011,2316.3,2315.4,14.81809836]
[1769993008914,0.0011,2316.3,2315.0,1.0799136]
[1769993008915,0.0011,2316.0,2315.0,1.0799136]
[1769993009117,0.0011,2316.0,2314.9,0.905]
[1769993009316,13.55408474,2315.8,2314.7,0.001]
[1769993009645,0.01342642,2315.3,2314.7,0.001]
[1769993009813,13.54065832,2315.5,2314.7,1.08103545]
[1769993010010,0.01342642,2315.4,2314.7,0.001]
[1769993010240,0.01342642,2315.1,2314.5,0.001]
[1769993010446,1.35809376,2315.1,2314.5,1.08114335]
[1769993010618,1.35809376,2315.1,2314.5,0.001]
[1769993011119,2.43797933,2315.1,2314.5,0.001]
[1769993013316,1.35809376,2315.1,2314.5,0.001]
[1769993013511,0.0011,2316.0,2314.7,13.73837132]
[1769993013739,1.08054745,2316.0,2314.6,0.905]
[1769993014055,0.0011,2316.0,2314.6,14.64337132]
[1769993014344,1.08058067,2316.0,2314.7,1.46443713]
[1769993014537,0.0011,2316.0,2314.7,1.46443713]
[1769993014915,0.0011,2316.0,2314.8,1.08000691]
[1769993015827,13.54175832,2316.0,2314.8,1.08000691]
[1769993016030,1.35417583,2315.9,2314.8,2.28895684]
[1769993020434,1.35417583,2315.9,2314.8,15.3855856]
[1769993020673,0.0011,2316.0,2314.8,15.3855856]
[1769993021652,13.06357043,2316.0,2314.8,2.28895684]
[1769993021878,0.0011,2316.0,2314.8,2.28895684]
[1769993022184,0.0011,2316.0,2314.9,0.001]
[1769993022360,0.0011,2315.8,2314.9,0.001]
[1769993022680,0.0011,2315.8,2314.9,1.97166132]
[1769993022884,0.01342642,2315.7,2314.9,0.001]
[1769993023101,11.98326393,2315.6,2314.9,0.001]
[1769993023462,1.07968041,2315.5,2314.9,0.001]
[1769993023658,13.06247043,2315.3,2314.6,0.001]
[1769993023972,14.38348653,2315.2,2314.5,0.001]
[1769993024276,13.06247043,2315.0,2314.2,0.001]
[1769993024474,13.07589685,2314.6,2313.4,1.08063746]
[1769993024669,13.07589685,2314.5,2313.5,1.08058774]
[1769993024882,13.66022303,2314.5,2313.5,1.08058774]
[1769993025196,0.01342642,2314.8,2313.3,0.001]
[1769993025197,1.36736494,2314.4,2313.9,1.08042698]
[1769993025363,1.08005357,2314.7,2313.8,0.001]
[1769993025563,14.142524,2314.7,2313.8,0.001]
[1769993026773,13.06247043,2314.7,2313.8,0.001]
[1769993027012,14.142524,2314.7,2313.8,0.001]
[1769993027520,12.66355715,2314.5,2313.8,0.001]
[1769993027693,13.93125551,2314.4,2313.3,0.001]
[1769993028067,12.66355715,2314.2,2313.3,0.001]
[1769993028267,0.905,2314.1,2313.3,0.001]
[1769993028467,13.56855715,2314.1,2313.3,0.001]
[1769993029496,12.66355715,2313.9,2312.8,1.08091649]
[1769993029701,1.08047367,2313.8,2312.9,1.62137127]
[1769993030203,1.08047367,2313.8,2312.9,0.54048221]
[1769993030564,12.67698357,2313.7,2312.4,0.905]
[1769993030797,12.67698357,2313.4,2312.2,1.08119002]
[1769993031092,12.67698357,2313.4,2311.9,0.001]
[1769993031093,12.67698357,2313.2,2312.0,1.08127924]
[1769993031262,14.03652457,2313.1,2312.0,1.08127924]
[1769993031464,14.03652457,2313.1,2311.9,0.001]
[1769993031687,1.359541,2313.1,2311.9,13.3960422]
[1769993031886,1.08075458,2313.2,2311.9,13.3960422]
[1769993032287,1.95595096,2314.0,2311.9,13.3960422]
[1769993032288,12.66355715,2313.9,2311.9,13.3960422]
[1769993032495,14.64903082,2313.8,2312.0,13.40846862]
[1769993032667,13.74403082,2313.8,2312.1,13.40846862]
[1769993032985,3.34458228,2314.0,2312.4,13.40846862]
[1769993033178,3.34458228,2314.0,2312.5,2.2481895]
[1769993033513,1.08027161,2314.3,2312.7,13.40846862]
[1769993033663,12.66355715,2314.6,2312.8,14.48940947]
[1769993033664,1.98629,2314.2,2312.8,14.48940947]
[1769993033862,1.98629,2314.2,2312.8,14.47598305]
[1769993034492,0.906,2314.2,2312.8,14.47598305]
[1769993034697,13.7436848,2314.6,2312.8,14.47598305]
[1769993034884,1.80774545,2314.5,2313.0,13.3950422]
[1769993035072,1.80774545,2314.5,2313.1,0.906]
[1769993035691,0.0011,2314.0,2313.2,14.47579613]
[1769993035879,0.906,2314.6,2313.2,14.48922255]
[1769993036081,0.0011,2314.2,2313.2,14.48922255]
[1769993036601,0.906,2314.9,2313.3,13.40846862]
[1769993036898,0.906,2314.9,2313.3,13.3950422]
[1769993037065,2.8042579,2314.9,2313.4,1.44892226]
[1769993037489,15.46781505,2314.9,2313.4,1.44892226]
[1769993037795,12.66355715,2314.5,2313.4,2.52956273]
[1769993037993,0.01342642,2314.4,2313.4,1.08065984]
[1769993038197,0.91942642,2314.3,2313.1,0.906]
[1769993038400,0.91942642,2314.3,2312.5,1.35561592]
[1769993038401,12.67698357,2314.2,2312.5,14.7372317]
[1769993038707,12.66355715,2314.2,2313.4,1.0806585]
[1769993038878,12.66355715,2314.2,2313.2,1.08071932]
[1769993039078,1.35695572,2314.1,2313.2,1.08072222]
[1769993039596,1.35695572,2314.1,2313.4,1.0806562]
[1769993039790,1.35695572,2314.1,2312.6,14.47607653]
[1769993040109,12.66355715,2314.2,2312.6,14.47607653]
[1769993040278,13.74385886,2314.2,2312.6,14.47607653]
[1769993040786,12.66355715,2314.2,2312.6,14.47607653]
[1769993040989,1.21588127,2314.3,2312.8,13.3950422]
[1769993041194,1e-08,2314.3,2313.0,13.3950422]
[1769993041396,1e-08,2314.3,2313.1,0.906]
[1769993041594,1e-08,2314.3,2313.1,14.3010422]
[1769993041931,14.05483803,2314.8,2313.4,1.08066049]
[1769993042078,14.05483803,2314.8,2313.3,1.08070103]
[1769993042284,12.66355715,2314.6,2313.3,1.08070103]
[1769993042475,12.66355715,2314.6,2312.6,13.3950422]
[1769993042476,0.01342642,2313.9,2312.8,1.08091655]
[1769993042679,0.01342642,2313.7,2312.8,1.08091655]
[1769993042879,0.01342642,2313.7,2312.8,1.08094]
[1769993043083,12.67698357,2313.7,2312.9,1.08089099]
[1769993043402,1.359641,2313.6,2312.9,1.08085092]
[1769993043573,13.56955715,2313.8,2312.8,1.08090547]
[1769993043775,13.74412423,2313.6,2312.4,1.08112783]
[1769993044001,13.75755065,2313.6,2312.4,1.08112783]
[1769993044371,0.01342642,2313.5,2312.4,1.08112783]
[1769993044575,12.67698357,2313.5,2312.4,1.08112783]
[1769993044796,14.05408128,2313.4,2312.4,1.08112783]
[1769993045701,1.37709771,2313.4,2312.4,1.08112783]
[1769993045894,13.56955715,2313.8,2312.3,4.32456163]
[1769993045895,12.66355715,2313.7,2312.3,4.32456163]
[1769993046339,0.906,2313.8,2312.3,17.71960383]
[1769993046539,13.74392616,2314.1,2312.4,13.40846862]
[1769993046833,1.08019357,2314.4,2312.7,0.01342642]
[1769993047129,1.37437507,2314.4,2313.0,13.3950422]
[1769993047898,0.906,2314.5,2313.1,14.30998098]
[1769993048134,0.31124814,2314.8,2313.2,13.22918033]
[1769993048498,0.0011,2313.4,2313.2,13.22918033]
[1769993048725,0.0011,2314.4,2313.2,13.22918033]
[1769993049731,0.0011,2314.4,2313.3,0.906]
[1769993049904,0.0011,2314.4,2313.5,1.08061378]
[1769993050934,0.31124814,2314.8,2313.6,13.22918033]
[1769993051131,0.0011,2315.2,2313.8,0.01342642]
[1769993051429,0.0011,2315.2,2313.9,0.906]
[1769993051642,1.08092889,2315.2,2313.9,0.906]
[1769993051950,0.0011,2315.2,2314.0,1.08038029]
[1769993052126,0.0011,2315.2,2314.1,0.63079015]
[1769993053103,13.76837183,2314.6,2313.3,1.08066055]
[1769993053322,13.76837183,2314.1,2313.0,1.08082595]
[1769993053523,13.76837183,2314.1,2313.4,4.32260759]
[1769993053721,13.76837183,2314.1,2313.1,4.32319936]
[1769993053722,1.37817983,2314.0,2313.5,1.08059302]
[1769993053918,1.08021752,2314.4,2312.8,17.53948927]
[1769993054254,13.75494541,2314.3,2312.8,4.32373536]
[1769993054460,13.76837183,2314.3,2312.8,4.32373536]
[1769993054661,13.75494541,2313.6,2312.5,1.08104658]
[1769993054861,1.37683718,2313.5,2312.6,1.08099039]
[1769993055851,0.906,2313.7,2312.6,1.08099039]
[1769993056052,15.74149716,2313.7,2312.4,4.32413733]
[1769993056624,15.75492358,2313.7,2312.4,1.08112783]
[1769993056825,13.75494541,2313.4,2312.4,1.08112783]
[1769993057024,13.75494541,2313.4,2312.1,0.001]
[1769993057025,13.75494541,2313.1,2312.1,0.001]
[1769993057241,16.03778259,2313.0,2312.1,0.001]
[1769993057437,16.03778259,2313.0,2312.1,4.32602578]
[1769993057651,16.03778259,2313.0,2312.3,1.08116942]
[1769993057652,2.28283718,2313.0,2312.3,1.08116942]
[1769993057856,0.906,2313.4,2312.3,1.08116942]
[1769993058153,13.75494541,2313.3,2312.1,0.001]
[1769993058366,1.98668638,2313.4,2312.1,0.001]
[1769993058569,0.6309166,2313.3,2312.1,0.001]
[1769993059263,13.75494541,2313.1,2312.1,0.001]
[1769993059566,13.75494541,2313.0,2312.1,0.001]
[1769993059865,0.6309166,2313.3,2312.1,0.001]
[1769993060241,1.98667062,2313.4,2312.3,0.001]
[1769993060438,1.98667062,2313.4,2312.1,0.001]
[1769993060439,13.75494541,2313.1,2312.1,0.001]
[1769993060643,0.01342642,2312.6,2311.7,0.001]
[1769993060856,14.67437183,2312.5,2311.7,0.001]
[1769993061173,14.66094541,2312.5,2311.7,0.001]
[1769993061342,1.46609454,2312.4,2311.7,0.001]
[1769993061547,0.906,2312.6,2311.7,0.001]
[1769993061960,14.66094541,2312.6,2311.7,0.001]
[1769993062478,15.74198984,2312.6,2311.7,0.001]
[1769993062777,15.75541626,2312.6,2311.7,0.001]
[1769993063145,13.75494541,2312.5,2311.7,0.001]
[1769993063344,1.57554163,2312.4,2311.7,0.001]
[1769993064056,2.65667934,2312.4,2311.7,0.001]
[1769993064646,1.98704335,2312.6,2311.7,0.001]
[1769993064843,0.906,2312.6,2311.7,0.001]
[1769993065779,0.906,2313.0,2311.7,13.21675391]
[1769993066276,1.98675393,2313.2,2311.8,1.08140842]
[1769993066581,0.906,2313.2,2311.8,14.31058875]
[1769993066756,14.83548214,2313.7,2312.0,13.22918033]
[1769993067075,15.74148214,2313.7,2312.1,13.22918033]
[1769993067445,1.98652137,2313.7,2312.1,13.22918033]
[1769993067650,1.98652137,2313.7,2312.2,0.906]
[1769993068150,1.98652137,2313.7,2312.3,1.08117458]
[1769993068377,2.61736389,2313.7,2312.4,0.63118729]
[1769993068680,1.53684252,2313.7,2312.4,0.63118729]
[1769993068889,0.0011,2314.1,2312.4,13.8469412]
[1769993069096,14.84980583,2314.1,2312.4,13.8469412]
[1769993069250,0.01342642,2313.9,2312.4,13.8469412]
[1769993069446,13.76837183,2313.7,2312.4,0.63118729]
[1769993069647,0.01342642,2313.5,2312.3,1.08117458]
[1769993070377,1.08066049,2313.4,2312.2,4.32469835]
[1769993070578,0.906,2313.5,2312.2,4.32469835]
[1769993070753,4.33525802,2313.9,2312.3,13.21575391]
[1769993070754,1.08045178,2313.9,2312.3,13.21575391]
[1769993070948,1.08045178,2313.9,2312.4,0.906]
[1769993070949,0.906,2313.7,2312.4,0.906]
[1769993071161,1.48364972,2313.9,2312.5,1.41217539]
[1769993071388,0.0011,2314.1,2312.7,13.21575391]
[1769993071587,1.08143926,2314.1,2312.7,13.21575391]
[1769993072449,0.0011,2314.1,2312.8,1.08094085]
[1769993072794,13.75494541,2313.9,2312.9,1.86204582]
[1769993072979,0.5562512,2314.1,2312.8,1.08094085]
[1769993073783,0.54282478,2314.1,2312.8,1.08094085]
[1769993074087,0.0011,2313.9,2312.8,1.08094085]
[1769993074454,0.0011,2313.9,2312.7,4.3237634]
[1769993074895,0.0011,2313.9,2312.8,13.21575391]
[1769993075084,0.0011,2313.9,2312.9,1.75395173]
[1769993075954,0.0011,2313.9,2312.7,5.2297634]
[1769993076473,0.0011,2313.9,2312.7,18.44551731]
[1769993077183,0.0011,2313.9,2312.7,5.2297634]
[1769993077706,13.42396412,2313.8,2312.3,0.01342642]
[1769993077860,13.42396412,2313.8,2311.7,0.01442642]
[1769993077861,0.01342642,2312.8,2312.0,0.001]
[1769993078183,0.906,2312.7,2311.7,1.08244354]
[1769993078590,1.98701139,2312.7,2311.7,0.001]
[1769993078959,0.906,2312.7,2311.7,0.001]
[1769993079294,1.98700097,2312.7,2311.7,0.001]
[1769993079666,0.63109513,2312.6,2311.7,0.001]
[1769993080272,0.64452155,2312.6,2311.7,0.001]
[1769993080469,0.63109513,2312.6,2311.7,0.001]
[1769993081181,0.906,2313.2,2311.7,12.91975657]
[1769993081489,14.32996412,2313.2,2311.7,0.001]
[1769993082162,0.906,2313.2,2311.7,12.91975657]
[1769993082366,0.906,2313.2,2311.9,12.91875657]
[1769993082694,2.50966361,2313.2,2312.1,1.08126811]
[1769993082997,1.42886717,2313.2,2312.1,1.08126811]
[1769993083307,2.50963098,2313.2,2312.1,1.08126811]
[1769993083710,1.98679225,2313.2,2312.1,1.08126811]
[1769993084809,1.98679225,2313.2,2312.0,5.7075481]
[1769993084810,1.98679225,2313.2,2312.0,1.38247566]
[1769993085015,13.42396412,2313.1,2311.9,1.08133696]
[1769993085178,13.43739054,2312.9,2311.7,0.001]
[1769993085382,0.01342642,2312.8,2311.9,1.08133688]
[1769993085582,2.00021867,2313.2,2312.0,1.08131297]
[1769993085790,1.97606249,2313.1,2312.0,1.08131297]
[1769993085993,1.97606249,2313.1,2311.9,1.08134804]
[1769993086180,1.97606249,2313.1,2312.0,1.08131331]
[1769993086592,1.08084738,2313.0,2311.7,0.001]
[1769993087590,0.906,2312.9,2312.2,0.001]
[1769993087787,1.97606249,2313.1,2312.2,0.001]
[1769993087990,14.62697402,2313.7,2312.2,0.001]
[1769993087991,4.32238292,2313.6,2312.2,0.001]
[1769993088219,1.08056708,2313.6,2312.2,13.22232558]
[1769993088422,2.42415434,2313.7,2312.3,0.01342642]
[1769993088623,1.08164793,2313.7,2312.3,0.01342642]
[1769993088931,14.27604196,2313.7,2312.4,1.08112783]
[1769993089084,13.19439403,2313.6,2312.2,4.32586288]
[1769993089289,0.01342642,2313.4,2312.2,1.08218156]
[1769993089490,1.33555111,2313.4,2312.2,1.62300388]
[1769993089692,0.01342642,2313.3,2312.2,0.001]
[1769993089926,0.91942642,2313.2,2312.2,0.001]
[1769993090431,0.906,2313.2,2312.2,0.001]
[1769993091117,1.08080065,2313.1,2312.2,0.001]
[1769993091916,1.09422707,2313.1,2312.2,0.001]
[1769993092220,0.63368561,2313.0,2312.2,0.001]
[1769993092402,0.64711203,2313.0,2312.2,0.001]
[1769993092598,0.63368561,2313.0,2312.2,0.001]
[1769993093096,1.71457488,2313.0,2312.2,0.001]
[1769993094094,1.08088927,2313.0,2312.2,0.001]
[1769993094522,1.98678789,2313.2,2312.2,0.001]
[1769993094724,0.906,2313.2,2312.2,0.001]
[1769993095096,0.906,2313.2,2312.2,14.30354692]
[1769993095298,1.08061208,2313.6,2312.2,26.93008925]
[1769993095535,1.08061208,2313.6,2312.3,3.21744011]
[1769993097427,1.08061208,2313.6,2312.4,1.08112783]
[1769993097607,3.86457757,2313.7,2312.4,14.30245341]
[1769993097811,3.86457757,2313.7,2312.5,2.18444049]
[1769993097812,1.98764645,2313.7,2312.5,2.18444049]
[1769993099428,1.98764645,2313.7,2312.6,1.08103433]
[1769993099944,0.9071,2313.7,2312.6,14.30235991]
[1769993100302,0.0011,2313.7,2312.7,14.12732558]
[1769993100525,0.0011,2313.9,2312.8,16.0048158]
[1769993100706,0.0011,2313.9,2313.1,13.22132558]
[1769993101120,0.0011,2313.9,2313.2,0.906]
[1769993101625,0.0011,2313.9,2313.3,1.08070721]
[1769993101998,0.0011,2313.9,2313.2,5.22894137]
[1769993101999,0.0011,2313.9,2312.9,4.32346344]
[1769993102197,14.51515343,2313.9,2312.9,1.08087608]
[1769993102714,1.3207594,2313.9,2313.2,1.08074333]
[1769993102916,0.0011,2313.9,2313.2,1.08074333]
[1769993103105,0.0011,2314.1,2313.2,1.08074333]
[1769993103299,0.0011,2314.1,2313.2,14.30206891]
[1769993103498,0.0011,2314.9,2313.2,14.30206891]
[1769993103499,0.906,2314.8,2313.4,13.22132558]
[1769993103729,0.0011,2314.9,2313.8,26.88931384]
[1769993103931,0.0011,2314.9,2313.9,16.81759961]
[1769993104129,0.0011,2314.9,2313.9,16.83102603]
[1769993104426,0.0011,2314.9,2313.9,16.81759961]
[1769993104927,0.0011,2314.9,2313.9,3.59627403]
[1769993105231,0.0011,2315.2,2314.0,13.234752]
[1769993105531,0.0011,2315.8,2314.8,13.234752]
[1769993105737,0.0011,2315.8,2314.9,0.906]
[1769993105922,0.0011,2315.8,2314.4,15.20751915]
[1769993106122,0.01342642,2315.6,2314.4,1.98619357]
[1769993106432,0.01342642,2315.6,2314.0,19.60613018]
[1769993106433,0.01342642,2315.2,2314.1,1.08030425]
[1769993106633,0.01342642,2314.9,2314.0,2.06331344]
[1769993106832,0.01342642,2315.0,2314.0,3.1436847]
[1769993107038,14.10039403,2315.1,2314.0,3.1436847]
[1769993107039,0.906,2315.1,2314.0,2.06331344]
[1769993107340,0.906,2315.1,2314.0,3.1436827]
[1769993107639,0.906,2315.4,2314.0,3.45805097]
[1769993107842,0.906,2315.4,2314.0,17.39732673]
[1769993108011,0.906,2315.4,2314.1,0.01342642]
[1769993108206,1.07961473,2315.7,2314.2,0.01342642]
[1769993108437,1.07961473,2315.7,2314.3,0.906]
[1769993108736,0.53989203,2315.6,2314.3,0.906]
[1769993109041,1.08067405,2315.8,2314.3,14.83184934]
[1769993109415,13.70100855,2315.8,2314.4,1.08019357]
[1769993109613,13.71443497,2315.8,2314.4,1.08019357]
[1769993110325,0.01342642,2315.5,2314.3,1.98622211]
[1769993110533,0.01342642,2315.4,2314.3,0.906]
[1769993110740,0.91942642,2315.3,2314.2,1.08026569]
[1769993111131,0.91942642,2315.3,2314.3,1.0802381]
[1769993111132,0.906,2315.3,2314.3,1.0802381]
[1769993111463,0.906,2315.3,2314.2,4.32109524]
[1769993111659,1.07970679,2315.5,2314.1,4.32096098]
[1769993111940,13.71346771,2315.5,2314.1,4.32096098]
[1769993112144,1.90857289,2315.4,2314.1,5.53102459]
[1769993112342,14.52890739,2315.4,2314.0,2.37768171]
[1769993112558,0.01342642,2315.0,2314.0,2.06331344]
[1769993112725,0.01342642,2314.7,2313.3,1.08067567]
[1769993112929,0.01342642,2314.7,2313.0,14.83184934]
[1769993112930,0.01342642,2314.4,2313.1,1.08077112]
[1769993113127,0.01342642,2314.3,2313.1,1.0807649]
[1769993113530,1.08028692,2314.2,2313.0,0.906]
[1769993113726,1.98628692,2314.2,2313.0,0.906]
[1769993113917,0.6320861,2314.1,2313.0,0.906]
[1769993114123,0.906,2314.2,2313.0,0.906]
[1769993115046,1.53944959,2314.2,2313.0,0.906]
[1769993115349,1.55287601,2314.2,2313.0,0.906]
[1769993115654,12.6203345,2314.0,2312.6,1.08103433]
[1769993115946,1.37140945,2313.9,2312.6,2.05406523]
[1769993116251,1.37140945,2313.9,2313.0,0.001]
[1769993116627,1.38483587,2313.9,2313.0,0.001]
[1769993116950,12.6203345,2313.7,2312.4,0.001]
[1769993117245,0.01342642,2313.2,2312.4,0.001]
[1769993117618,0.01342642,2313.2,2312.2,0.001]
[1769993117619,1.0942738,2313.0,2312.2,0.001]
[1769993117818,0.906,2312.9,2312.2,0.001]
[1769993118047,0.91942642,2312.9,2312.1,0.001]
[1769993118226,0.01342642,2312.8,2311.7,0.001]
[1769993118420,0.01342642,2312.7,2311.7,0.001]
[1769993118651,0.01342642,2312.5,2311.7,0.001]
[1769993118819,0.01342642,2312.5,2311.6,0.001]
[1769993119019,12.6203345,2312.7,2311.6,0.001]
[1769993119327,0.01342642,2312.5,2311.6,0.001]
[1769993119516,12.6203345,2312.7,2311.6,0.001]
[1769993119720,1.71615944,2312.6,2311.6,0.001]
[1769993120647,0.50744959,2312.5,2311.6,0.001]
[1769993121650,1.08112783,2312.4,2311.6,0.001]
[1769993121860,0.50744959,2312.3,2311.6,0.001]
[1769993123263,13.12778409,2312.3,2311.2,0.001]
[1769993123564,12.6203345,2312.1,2311.2,0.001]
[1769993123861,12.6203345,2312.1,2310.6,4.32785903]
[1769993123862,2.80965102,2312.0,2310.4,15.00791305]
[1769993124160,15.6149345,2311.9,2310.4,1.08206371]
[1769993124364,16.0492525,2311.8,2310.4,1.08206371]
[1769993124591,16.0492525,2311.8,2310.0,18.25470485]
[1769993124592,12.6203345,2311.8,2310.0,13.92584934]
[1769993124761,12.6203345,2311.6,2310.3,1.08209176]
[1769993124962,12.6203345,2311.6,2310.3,1.08210857]
[1769993125143,12.6203345,2311.6,2309.7,14.83184934]
[1769993125344,12.6203345,2311.4,2310.3,1.08210877]
[1769993125553,0.906,2311.3,2310.3,1.08210877]
[1769993125759,0.906,2311.3,2310.0,13.92584934]
[1769993125976,1.08145098,2311.8,2310.0,13.92584934]
[1769993126192,1.0948774,2311.8,2310.0,13.92584934]
[1769993126562,0.906,2311.9,2310.0,13.92584934]
[1769993126767,0.01342642,2311.6,2310.2,13.92584934]
[1769993127307,0.01342642,2310.9,2310.1,1.8268453]
[1769993127504,0.01342642,2310.6,2309.8,1.08234479]
[1769993127651,0.01342642,2310.3,2309.3,13.92584934]
[1769993127855,0.01342642,2310.4,2309.6,1.08243851]
[1769993128091,0.01342642,2310.6,2310.2,0.001]
[1769993128280,0.3086918,2310.7,2310.2,0.001]
[1769993128479,0.01342642,2310.6,2310.2,0.001]
[1769993129189,0.01342642,2310.4,2310.0,0.001]
[1769993129358,0.01342642,2310.6,2309.6,2.14724767]
[1769993129558,1.39062236,2310.7,2309.7,0.64771467]
[1769993129779,0.01342642,2310.4,2308.6,13.92584934]
[1769993129977,0.01342642,2309.9,2309.2,1.08260766]
[1769993130189,0.01342642,2309.8,2309.3,4.33027591]
[1769993130391,0.01342642,2309.7,2309.2,1.08262222]
[1769993130693,0.01342642,2309.8,2308.2,5.23924365]
[1769993130694,1.09539862,2310.6,2309.7,1.08237643]
[1769993130857,0.5861142,2310.5,2309.7,1.08237643]
[1769993131059,0.3086918,2310.7,2309.7,1.08237643]
[1769993131260,0.3086918,2310.7,2309.7,1.98937643]
[1769993131459,1.39061521,2310.7,2309.7,1.98937643]
[1769993131889,0.3086918,2310.7,2309.4,15.00838159]
[1769993132122,0.01342642,2310.6,2309.4,15.00838159]
[1769993132409,0.01342642,2310.4,2309.5,1.93379482]
[1769993132684,0.01342642,2310.5,2309.5,1.93379482]
[1769993132891,0.3086918,2310.7,2309.5,15.85964416]
[1769993133075,0.01342642,2310.6,2309.5,15.85964416]
[1769993133279,0.01342642,2310.4,2309.5,1.93379482]
[1769993133509,0.01342642,2310.4,2309.4,1.08253225]
[1769993133510,0.01342642,2310.1,2309.4,1.08253225]
[1769993133816,0.01342642,2310.0,2309.0,0.001]
[1769993134107,0.01342642,2310.2,2309.0,0.908]
[1769993134306,0.01342642,2310.1,2309.0,0.908]
[1769993134505,0.01342642,2310.0,2309.0,0.908]
[1769993134724,0.01342642,2309.9,2309.1,0.5238909]
[1769993134898,0.01342642,2310.0,2309.1,0.5238909]
[1769993135209,0.32211822,2310.7,2309.1,14.44974024]
[1769993135586,0.01342642,2310.6,2309.1,14.44974024]
[1769993135797,1.09552673,2310.4,2309.3,1.08257913]
[1769993136006,0.57584785,2310.6,2309.3,15.00842847]
[1769993136195,1.40405738,2310.7,2309.3,15.00842847]
[1769993136396,0.01342642,2310.5,2309.3,15.00842847]
[1769993136595,1.40405738,2310.7,2309.3,15.00842847]
[1769993136596,0.3086918,2310.7,2309.3,15.00842847]
[1769993137128,0.01342642,2311.3,2309.4,13.92584934]
[1769993137298,0.01342642,2311.3,2309.5,15.42669219]
[1769993137299,0.01342642,2310.8,2309.5,15.42669219]
[1769993137501,0.01342642,2310.8,2309.5,1.50084285]
[1769993137502,0.01342642,2310.5,2309.5,1.50084285]
[1769993137694,0.01342642,2310.3,2309.4,0.907]
[1769993138025,0.01342642,2311.1,2309.5,13.79351881]
[1769993138319,0.01342642,2310.3,2309.4,1.08249665]
[1769993138515,0.01342642,2310.2,2309.3,1.08253946]
[1769993138689,0.01342642,2310.3,2309.4,1.34435189]
[1769993139127,0.01342642,2310.2,2309.4,1.34435189]
[1769993139319,0.01342642,2310.0,2309.4,1.08252957]
[1769993139528,0.01342642,2310.2,2309.4,1.08252957]
[1769993139699,0.01342642,2310.3,2309.4,1.08252957]
[1769993139901,0.01342642,2310.3,2309.2,1.08262601]
[1769993140109,1.08211314,2310.3,2309.2,1.08262601]
[1769993140302,1.08211314,2310.3,2309.3,0.6844021]
[1769993140502,1.09551766,2310.4,2309.3,0.6844021]
[1769993140698,0.01342642,2310.3,2309.3,0.6844021]
[1769993141526,0.01342642,2310.2,2309.3,0.6844021]